[Event "Early-Titled-Tuesday-Blitz-May-14-2024"]
[Site "Chess.com"]
[Date "2024.05.14"]
[Round "1"]
[White "Lovetov"]
[Black "MITerryble"]
[Result "0-1"]
[WhiteElo "2543"]
[BlackElo "3051"]
[TimeControl "180+1"]
[EndTime "8:06:18 PDT"]
[Termination "MITerryble won by resignation"]

1. d4 {[%clk 0:02:59.6]} 1... e6 {[%clk 0:02:57.9]} 2. Nf3 {[%clk 0:02:55.7]}
2... Nf6 {[%clk 0:02:57.8]} 3. Nc3 {[%clk 0:02:49.9]} 3... d5 {[%clk 0:02:56.6]}
4. Bg5 {[%clk 0:02:50.5]} 4... h6 {[%clk 0:02:52.3]} 5. Bh4 {[%clk 0:02:43.6]}
5... c5 {[%clk 0:02:49]} 6. e4 {[%clk 0:02:25]} 6... g5 {[%clk 0:02:45.5]} 7.
Bg3 {[%clk 0:02:24.7]} 7... dxe4 {[%clk 0:02:45.2]} 8. Ne5 {[%clk 0:02:08.8]}
8... cxd4 {[%clk 0:02:42.3]} 9. Bb5+ {[%clk 0:02:07.3]} 9... Ke7 {[%clk
0:02:19.8]} 10. O-O {[%clk 0:01:14.6]} 10... Bg7 {[%clk 0:02:14.7]} 11. Nc4
{[%clk 0:01:03.7]} 11... Ne8 {[%clk 0:01:46]} 12. Nxe4 {[%clk 0:00:54.1]} 12...
f5 {[%clk 0:01:43.6]} 13. Bxe8 {[%clk 0:00:13.8]} 13... Rxe8 {[%clk 0:01:37.1]}
14. Ned6 {[%clk 0:00:06.4]} 14... f4 {[%clk 0:01:27.2]} 15. Bxf4 {[%clk
0:00:07]} 15... gxf4 {[%clk 0:01:27.1]} 16. Qh5 {[%clk 0:00:07.1]} 16... Rf8
{[%clk 0:01:21.4]} 17. Rfe1 {[%clk 0:00:05.7]} 17... Nc6 {[%clk 0:01:06.3]} 18.
Qg4 {[%clk 0:00:03.3]} 18... Bf6 {[%clk 0:01:04.7]} 19. Nf5+ {[%clk 0:00:01.6]}
19... Kd7 {[%clk 0:01:04.9]} 20. Nxh6 {[%clk 0:00:01.7]} 20... Kc7 {[%clk
0:01:04.7]} 21. Qf3 {[%clk 0:00:00.7]} 21... e5 {[%clk 0:01:04.8]} 22. Ng4
{[%clk 0:00:01.2]} 22... Bxg4 {[%clk 0:01:04.7]} 23. Qxg4 {[%clk 0:00:02.1]}
23... Qd7 {[%clk 0:01:05.6]} 24. Qf3 {[%clk 0:00:02.1]} 24... Rg8 {[%clk
0:01:05.2]} 25. Rad1 {[%clk 0:00:03]} 25... Qg4 {[%clk 0:01:03.1]} 26. Qe4
{[%clk 0:00:03]} 26... f3 {[%clk 0:01:02.8]} 27. Qxg4 {[%clk 0:00:03.3]} 27...
Rxg4 {[%clk 0:01:03.7]} 28. g3 {[%clk 0:00:04.2]} 28... Rh8 {[%clk 0:01:03.1]}
0-1

[Event "Early-Titled-Tuesday-Blitz-May-14-2024"]
[Site "Chess.com"]
[Date "2024.05.14"]
[Round "1"]
[White "Aswathchess"]
[Black "MariaFominykh"]
[Result "1-0"]
[WhiteElo "2654"]
[BlackElo "2326"]
[TimeControl "180+1"]
[EndTime "8:06:19 PDT"]
[Termination "Aswathchess won by resignation"]

1. Nf3 {[%clk 0:02:07.7]} 1... Nf6 {[%clk 0:02:59.1]} 2. d4 {[%clk 0:02:04.5]}
2... g6 {[%clk 0:02:59.6]} 3. Bf4 {[%clk 0:02:03.6]} 3... Bg7 {[%clk 0:02:59.2]}
4. e3 {[%clk 0:02:04]} 4... d6 {[%clk 0:02:59.7]} 5. Nbd2 {[%clk 0:02:04.1]}
5... Nbd7 {[%clk 0:03:00.2]} 6. Bd3 {[%clk 0:02:04.7]} 6... b6 {[%clk
0:03:00.7]} 7. O-O {[%clk 0:02:04.6]} 7... Bb7 {[%clk 0:03:01]} 8. c3 {[%clk
0:02:04.7]} 8... O-O {[%clk 0:03:00.9]} 9. h3 {[%clk 0:02:04.3]} 9... Qe8 {[%clk
0:02:59.9]} 10. Bh2 {[%clk 0:02:04.4]} 10... e5 {[%clk 0:02:58.6]} 11. e4 {[%clk
0:01:57.6]} 11... exd4 {[%clk 0:02:49.7]} 12. cxd4 {[%clk 0:01:58.5]} 12... Nxe4
{[%clk 0:02:34.5]} 13. Re1 {[%clk 0:01:58.2]} 13... f5 {[%clk 0:02:28.7]} 14.
Ng5 {[%clk 0:01:52.4]} 14... Bxd4 {[%clk 0:01:11.8]} 15. Ndxe4 {[%clk
0:01:51.3]} 15... fxe4 {[%clk 0:01:11.3]} 16. Bc4+ {[%clk 0:01:51.7]} 16... d5
{[%clk 0:01:05.4]} 17. Qxd4 {[%clk 0:01:51.4]} 17... dxc4 {[%clk 0:01:01.6]} 18.
Qxc4+ {[%clk 0:01:52.3]} 18... Kh8 {[%clk 0:00:57.9]} 19. Qxc7 {[%clk
0:01:52.1]} 19... Qc8 {[%clk 0:00:29.2]} 20. Qd6 {[%clk 0:01:26.3]} 20... Nf6
{[%clk 0:00:10.8]} 21. Ne6 {[%clk 0:01:11.6]} 21... Rf7 {[%clk 0:00:09.8]} 22.
Be5 {[%clk 0:01:09.8]} 22... Kg8 {[%clk 0:00:03.3]} 23. Ng5 {[%clk 0:01:00.9]}
23... Qd7 {[%clk 0:00:02.4]} 24. Nxf7 {[%clk 0:01:00.4]} 24... Qxd6 {[%clk
0:00:02.1]} 25. Nxd6 {[%clk 0:01:00]} 25... Nd7 {[%clk 0:00:01.8]} 26. Nxb7
{[%clk 0:01:00.1]} 26... Nxe5 {[%clk 0:00:02.2]} 27. Rxe4 {[%clk 0:01:00.8]}
27... Nd3 {[%clk 0:00:01.8]} 28. Rd1 {[%clk 0:01:00.8]} 1-0

[Event "Early-Titled-Tuesday-Blitz-May-14-2024"]
[Site "Chess.com"]
[Date "2024.05.14"]
[Round "1"]
[White "ploxoi"]
[Black "Nf3c5"]
[Result "0-1"]
[WhiteElo "2320"]
[BlackElo "2642"]
[TimeControl "180+1"]
[EndTime "8:06:19 PDT"]
[Termination "Nf3c5 won by resignation"]

1. d4 {[%clk 0:02:58.7]} 1... d5 {[%clk 0:02:58.9]} 2. c4 {[%clk 0:02:59.3]}
2... e6 {[%clk 0:02:56.5]} 3. Nf3 {[%clk 0:02:59.8]} 3... Nf6 {[%clk 0:02:56.6]}
4. g3 {[%clk 0:03:00.2]} 4... h6 {[%clk 0:02:56]} 5. Bg2 {[%clk 0:02:59.7]} 5...
Bb4+ {[%clk 0:02:51.7]} 6. Bd2 {[%clk 0:02:59.4]} 6... Bd6 {[%clk 0:02:51.5]} 7.
O-O {[%clk 0:02:57.9]} 7... O-O {[%clk 0:02:49.7]} 8. Qc2 {[%clk 0:02:57.9]}
8... dxc4 {[%clk 0:02:39.8]} 9. Ne5 {[%clk 0:02:46.7]} 9... Nc6 {[%clk
0:02:40.7]} 10. Nxc6 {[%clk 0:02:31.8]} 10... bxc6 {[%clk 0:02:39.4]} 11. Bxc6
{[%clk 0:02:32.7]} 11... Rb8 {[%clk 0:02:39.6]} 12. Na3 {[%clk 0:02:26.6]} 12...
Ba6 {[%clk 0:02:04.2]} 13. Rfd1 {[%clk 0:01:50.2]} 13... Nd5 {[%clk 0:01:55.3]}
14. Rab1 {[%clk 0:01:48.6]} 14... Bxa3 {[%clk 0:01:42.6]} 15. bxa3 {[%clk
0:01:46.9]} 15... Qd6 {[%clk 0:01:43.3]} 16. Bxd5 {[%clk 0:01:27.6]} 16... Qxd5
{[%clk 0:01:44.2]} 17. e4 {[%clk 0:01:28.2]} 17... Qh5 {[%clk 0:01:40.8]} 18.
Bb4 {[%clk 0:01:25.7]} 18... Rfd8 {[%clk 0:01:38.7]} 19. Bc5 {[%clk 0:01:24.3]}
19... c3 {[%clk 0:01:27.6]} 20. Qxc3 {[%clk 0:00:53.5]} 20... Be2 {[%clk
0:01:23.3]} 21. Re1 {[%clk 0:00:53.7]} 21... Bf3 {[%clk 0:01:21.2]} 22. Rb3
{[%clk 0:00:54]} 22... Rxb3 {[%clk 0:01:10.2]} 23. axb3 {[%clk 0:00:54.9]} 23...
f5 {[%clk 0:01:08.2]} 24. exf5 {[%clk 0:00:41.2]} 24... exf5 {[%clk 0:01:05.4]}
25. h4 {[%clk 0:00:32.7]} 25... Bd5 {[%clk 0:00:56.7]} 26. Qe3 {[%clk 0:00:17]}
26... Kh7 {[%clk 0:00:49.4]} 27. Qe7 {[%clk 0:00:17.3]} 27... Qf3 {[%clk
0:00:45.7]} 28. Re4 {[%clk 0:00:14.3]} 28... Bxe4 {[%clk 0:00:44.2]} 0-1

[Event "Early-Titled-Tuesday-Blitz-May-14-2024"]
[Site "Chess.com"]
[Date "2024.05.14"]
[Round "1"]
[White "Dewarfd"]
[Black "Nouali_Mohamed"]
[Result "0-1"]
[WhiteElo "2054"]
[BlackElo "2561"]
[TimeControl "180+1"]
[EndTime "8:06:19 PDT"]
[Termination "Nouali_Mohamed won by resignation"]

1. d4 {[%clk 0:02:59.3]} 1... Nf6 {[%clk 0:02:59.5]} 2. e3 {[%clk 0:02:57.3]}
2... g6 {[%clk 0:02:59.8]} 3. Nf3 {[%clk 0:02:57.2]} 3... Bg7 {[%clk 0:03:00.1]}
4. Be2 {[%clk 0:02:56.9]} 4... O-O {[%clk 0:03:01]} 5. b4 {[%clk 0:02:56.5]}
5... d6 {[%clk 0:03:01.9]} 6. Bb2 {[%clk 0:02:55.9]} 6... Ne4 {[%clk 0:02:58.8]}
7. c4 {[%clk 0:02:54.2]} 7... c5 {[%clk 0:02:58]} 8. a3 {[%clk 0:02:48.2]} 8...
Nc6 {[%clk 0:02:47.4]} 9. b5 {[%clk 0:02:40.6]} 9... Na5 {[%clk 0:02:47.3]} 10.
O-O {[%clk 0:02:37.8]} 10... d5 {[%clk 0:02:40.8]} 11. cxd5 {[%clk 0:02:27.9]}
11... Qxd5 {[%clk 0:02:40.3]} 12. Nc3 {[%clk 0:02:23.8]} 12... Nxc3 {[%clk
0:02:40.2]} 13. Bxc3 {[%clk 0:02:24]} 13... b6 {[%clk 0:02:30.8]} 14. Bxa5
{[%clk 0:02:11.5]} 14... bxa5 {[%clk 0:02:30.7]} 15. dxc5 {[%clk 0:02:05]} 15...
Qxc5 {[%clk 0:02:28.3]} 16. Qc1 {[%clk 0:01:42.6]} 16... Qb6 {[%clk 0:02:15.5]}
17. Ra2 {[%clk 0:01:20.3]} 17... a4 {[%clk 0:02:01]} 18. Qc6 {[%clk 0:01:10]}
18... Be6 {[%clk 0:01:49]} 19. Rc2 {[%clk 0:00:44.3]} 19... Bb3 {[%clk
0:01:37.7]} 20. Qxb6 {[%clk 0:00:42.2]} 20... axb6 {[%clk 0:01:38.6]} 21. Rc6
{[%clk 0:00:41.8]} 21... Rab8 {[%clk 0:01:36.2]} 22. Nd4 {[%clk 0:00:38.8]}
22... Bxd4 {[%clk 0:01:25.8]} 23. exd4 {[%clk 0:00:38.3]} 23... Rfd8 {[%clk
0:01:26.7]} 24. Bc4 {[%clk 0:00:12]} 24... Rxd4 {[%clk 0:01:22.6]} 25. Bxb3
{[%clk 0:00:12]} 25... axb3 {[%clk 0:01:23.5]} 26. Rc3 {[%clk 0:00:09.8]} 26...
b2 {[%clk 0:01:19.6]} 27. Rb3 {[%clk 0:00:09.4]} 27... Rd2 {[%clk 0:01:19.9]}
28. g3 {[%clk 0:00:07.4]} 28... Rc8 {[%clk 0:01:17.2]} 29. Kg2 {[%clk
0:00:05.7]} 29... Rc4 {[%clk 0:01:06.4]} 30. Rb1 {[%clk 0:00:05.4]} 30... Rcc2
{[%clk 0:01:03.6]} 31. R1xb2 {[%clk 0:00:04.1]} 31... Rxf2+ {[%clk 0:01:01.8]}
32. Kh3 {[%clk 0:00:04.1]} 32... Rxb2 {[%clk 0:01:02.7]} 33. Rxb2 {[%clk
0:00:03.8]} 33... Rxb2 {[%clk 0:01:01.6]} 0-1

[Event "Early-Titled-Tuesday-Blitz-May-14-2024"]
[Site "Chess.com"]
[Date "2024.05.14"]
[Round "1"]
[White "mfschulz"]
[Black "Galileo22"]
[Result "0-1"]
[WhiteElo "2336"]
[BlackElo "2661"]
[TimeControl "180+1"]
[EndTime "8:06:22 PDT"]
[Termination "Galileo22 won by resignation"]

1. d4 {[%clk 0:02:59.1]} 1... d5 {[%clk 0:02:59]} 2. Bg5 {[%clk 0:02:58.5]} 2...
h6 {[%clk 0:02:56.1]} 3. Bh4 {[%clk 0:02:58.5]} 3... c6 {[%clk 0:02:56.6]} 4.
Nd2 {[%clk 0:02:58.4]} 4... Qb6 {[%clk 0:02:56.9]} 5. e3 {[%clk 0:02:58.5]} 5...
Qxb2 {[%clk 0:02:55.5]} 6. Bd3 {[%clk 0:02:58.6]} 6... Qb6 {[%clk 0:02:49.5]} 7.
Ngf3 {[%clk 0:02:58.5]} 7... Nf6 {[%clk 0:02:45.4]} 8. O-O {[%clk 0:02:57.6]}
8... Qd8 {[%clk 0:02:29.2]} 9. c4 {[%clk 0:02:57]} 9... Nbd7 {[%clk 0:02:26.6]}
10. Rb1 {[%clk 0:02:54.9]} 10... g6 {[%clk 0:02:23.8]} 11. e4 {[%clk 0:02:52.5]}
11... dxe4 {[%clk 0:02:23.6]} 12. Nxe4 {[%clk 0:02:52.3]} 12... Bg7 {[%clk
0:02:21.4]} 13. Ne5 {[%clk 0:02:40.6]} 13... O-O {[%clk 0:02:18.8]} 14. f4
{[%clk 0:02:37.8]} 14... Qa5 {[%clk 0:02:00.8]} 15. Kh1 {[%clk 0:02:35.5]} 15...
Rd8 {[%clk 0:01:53.5]} 16. Qb3 {[%clk 0:02:29.3]} 16... Nf8 {[%clk 0:01:46]} 17.
Bf2 {[%clk 0:02:14.4]} 17... Ne6 {[%clk 0:01:40.2]} 18. f5 {[%clk 0:02:10.6]}
18... gxf5 {[%clk 0:01:37.8]} 19. Nxf6+ {[%clk 0:02:09.9]} 19... exf6 {[%clk
0:01:35.5]} 20. Nf3 {[%clk 0:02:06.9]} 20... Ng5 {[%clk 0:01:27.4]} 21. Nh4
{[%clk 0:02:03.7]} 21... f4 {[%clk 0:00:47.4]} 22. Bc2 {[%clk 0:01:54.3]} 22...
f5 {[%clk 0:00:44.1]} 23. Nxf5 {[%clk 0:01:41.3]} 23... Bxf5 {[%clk 0:00:43]}
24. Bxf5 {[%clk 0:01:37.4]} 24... Qxf5 {[%clk 0:00:43.9]} 25. Qxb7 {[%clk
0:01:36.8]} 25... f3 {[%clk 0:00:43.1]} 26. Rg1 {[%clk 0:01:26.7]} 26... fxg2+
{[%clk 0:00:39.8]} 27. Rxg2 {[%clk 0:01:26]} 27... Rab8 {[%clk 0:00:38.9]} 28.
Qxb8 {[%clk 0:01:24.2]} 28... Rxb8 {[%clk 0:00:39.8]} 29. Rxb8+ {[%clk
0:01:23.5]} 29... Kh7 {[%clk 0:00:40.7]} 30. Rb7 {[%clk 0:01:16.1]} 30... Nh3
{[%clk 0:00:37.3]} 31. Bg1 {[%clk 0:01:01.8]} 31... Nxg1 {[%clk 0:00:29.4]} 32.
Rxg1 {[%clk 0:00:58.4]} 32... Bxd4 {[%clk 0:00:26.9]} 0-1

[Event "Early-Titled-Tuesday-Blitz-May-14-2024"]
[Site "Chess.com"]
[Date "2024.05.14"]
[Round "1"]
[White "Bob_2004"]
[Black "Grossboss19"]
[Result "0-1"]
[WhiteElo "2298"]
[BlackElo "2622"]
[TimeControl "180+1"]
[EndTime "8:06:23 PDT"]
[Termination "Grossboss19 won on time"]

1. d4 {[%clk 0:03:00.9]} 1... Nf6 {[%clk 0:02:56.3]} 2. c4 {[%clk 0:03:00.2]}
2... e6 {[%clk 0:02:55.6]} 3. Nc3 {[%clk 0:03:00.2]} 3... Bb4 {[%clk 0:02:52.7]}
4. f3 {[%clk 0:03:00.1]} 4... O-O {[%clk 0:02:48.8]} 5. a3 {[%clk 0:02:59.3]}
5... Bxc3+ {[%clk 0:02:48.1]} 6. bxc3 {[%clk 0:03:00.2]} 6... c5 {[%clk
0:02:47.9]} 7. e4 {[%clk 0:02:59.1]} 7... Nc6 {[%clk 0:02:38]} 8. Be3 {[%clk
0:02:57.8]} 8... Qa5 {[%clk 0:02:34.1]} 9. Qd2 {[%clk 0:02:49.3]} 9... d6 {[%clk
0:02:32.9]} 10. Bd3 {[%clk 0:02:41.2]} 10... e5 {[%clk 0:02:29.2]} 11. d5 {[%clk
0:02:38.3]} 11... Ne7 {[%clk 0:02:29.4]} 12. Bg5 {[%clk 0:02:26]} 12... Kh8
{[%clk 0:02:27]} 13. Bxf6 {[%clk 0:02:19.2]} 13... gxf6 {[%clk 0:02:26.9]} 14.
Ne2 {[%clk 0:01:56.2]} 14... Qd8 {[%clk 0:02:23.3]} 15. g4 {[%clk 0:01:48.8]}
15... Bd7 {[%clk 0:02:19.8]} 16. Ng3 {[%clk 0:01:39.4]} 16... Ng6 {[%clk
0:02:18.5]} 17. Qh6 {[%clk 0:01:25.3]} 17... Nf4 {[%clk 0:02:13]} 18. Kd2 {[%clk
0:01:10.2]} 18... Rg8 {[%clk 0:02:09]} 19. Rag1 {[%clk 0:00:51.3]} 19... Qe7
{[%clk 0:02:02.5]} 20. Nf5 {[%clk 0:00:40.7]} 20... Bxf5 {[%clk 0:01:57.6]} 21.
gxf5 {[%clk 0:00:37.8]} 21... Rxg1 {[%clk 0:01:54]} 22. Rxg1 {[%clk 0:00:37.5]}
22... Rg8 {[%clk 0:01:54.6]} 23. Rg4 {[%clk 0:00:22.9]} 23... Qd8 {[%clk
0:01:32.6]} 24. Bf1 {[%clk 0:00:15.2]} 24... Rxg4 {[%clk 0:01:25.2]} 25. fxg4
{[%clk 0:00:14.3]} 25... Kg8 {[%clk 0:01:25.5]} 26. h4 {[%clk 0:00:12.9]} 26...
Qb6 {[%clk 0:01:21.2]} 27. Kc2 {[%clk 0:00:02.2]} 27... Qd8 {[%clk 0:01:14.9]}
28. g5 {[%clk 0:00:01.7]} 28... fxg5 {[%clk 0:01:15.3]} 29. hxg5 {[%clk
0:00:02.1]} 29... f6 {[%clk 0:01:11.1]} 30. g6 {[%clk 0:00:01.8]} 30... hxg6
{[%clk 0:01:11.1]} 31. fxg6 {[%clk 0:00:02.7]} 31... Qd7 {[%clk 0:01:06.7]} 32.
Kd2 {[%clk 0:00:00.1]} 32... Qg7 {[%clk 0:01:02.9]} 0-1

[Event "Early-Titled-Tuesday-Blitz-May-14-2024"]
[Site "Chess.com"]
[Date "2024.05.14"]
[Round "1"]
[White "KirAk47"]
[Black "CSB7"]
[Result "0-1"]
[WhiteElo "2438"]
[BlackElo "2770"]
[TimeControl "180+1"]
[EndTime "8:06:24 PDT"]
[Termination "CSB7 won by resignation"]

1. e4 {[%clk 0:02:57.5]} 1... c5 {[%clk 0:03:00.2]} 2. Nc3 {[%clk 0:02:55]} 2...
e6 {[%clk 0:02:54.2]} 3. Nge2 {[%clk 0:02:44.1]} 3... Nc6 {[%clk 0:02:53.5]} 4.
g3 {[%clk 0:02:41.5]} 4... d5 {[%clk 0:02:53.5]} 5. exd5 {[%clk 0:02:41.9]} 5...
exd5 {[%clk 0:02:54.4]} 6. d4 {[%clk 0:02:41.9]} 6... Bg4 {[%clk 0:02:54.8]} 7.
Bg2 {[%clk 0:02:06.5]} 7... Nxd4 {[%clk 0:02:53.6]} 8. O-O {[%clk 0:01:59.4]}
8... Nf6 {[%clk 0:02:30.1]} 9. f3 {[%clk 0:01:46.3]} 9... Be6 {[%clk 0:01:48.2]}
10. Nxd4 {[%clk 0:01:13.3]} 10... cxd4 {[%clk 0:01:49.1]} 11. Ne2 {[%clk
0:01:13.1]} 11... Bc5 {[%clk 0:01:42.6]} 12. Nxd4 {[%clk 0:01:10.2]} 12... Qb6
{[%clk 0:01:40.1]} 13. c3 {[%clk 0:00:44.5]} 13... O-O {[%clk 0:01:39.5]} 14.
Re1 {[%clk 0:00:28.4]} 14... Rac8 {[%clk 0:01:36.9]} 15. a4 {[%clk 0:00:26]}
15... a5 {[%clk 0:01:29.8]} 16. Rb1 {[%clk 0:00:24.7]} 16... Bf5 {[%clk
0:01:27.2]} 17. Ra1 {[%clk 0:00:21.9]} 17... Rfe8 {[%clk 0:01:24.2]} 18. Be3
{[%clk 0:00:20.5]} 18... Bg6 {[%clk 0:01:06.4]} 19. Re2 {[%clk 0:00:19]} 19...
Nd7 {[%clk 0:01:04.3]} 20. Qd2 {[%clk 0:00:18.9]} 20... Ne5 {[%clk 0:01:04]} 21.
b3 {[%clk 0:00:19]} 21... Nd3 {[%clk 0:00:53.4]} 22. Rd1 {[%clk 0:00:12.6]}
22... h6 {[%clk 0:00:49.3]} 23. Bh3 {[%clk 0:00:12.4]} 23... Rcd8 {[%clk
0:00:46.5]} 24. Bf1 {[%clk 0:00:11.9]} 24... Ne5 {[%clk 0:00:43.1]} 25. Nb5
{[%clk 0:00:11.8]} 25... Nxf3+ {[%clk 0:00:42.7]} 26. Kg2 {[%clk 0:00:08.7]}
26... Nxd2 {[%clk 0:00:43.6]} 27. Bxd2 {[%clk 0:00:08.5]} 27... Be4+ {[%clk
0:00:41]} 28. Kh3 {[%clk 0:00:08.1]} 28... Qe6+ {[%clk 0:00:39.1]} 0-1

[Event "Early-Titled-Tuesday-Blitz-May-14-2024"]
[Site "Chess.com"]
[Date "2024.05.14"]
[Round "1"]
[White "Kostya0705"]
[Black "Guldona_2007"]
[Result "1/2-1/2"]
[WhiteElo "2576"]
[BlackElo "2200"]
[TimeControl "180+1"]
[EndTime "8:06:25 PDT"]
[Termination "Game drawn by repetition"]

1. e4 {[%clk 0:02:59.3]} 1... c5 {[%clk 0:02:59.5]} 2. Nf3 {[%clk 0:02:57.8]}
2... d6 {[%clk 0:02:59.1]} 3. d4 {[%clk 0:02:58.3]} 3... cxd4 {[%clk 0:02:59.5]}
4. Nxd4 {[%clk 0:02:59.2]} 4... Nf6 {[%clk 0:03:00]} 5. Nc3 {[%clk 0:02:59.9]}
5... Nc6 {[%clk 0:03:00.6]} 6. Bg5 {[%clk 0:02:58.3]} 6... Bd7 {[%clk
0:02:59.8]} 7. Qd2 {[%clk 0:02:57.9]} 7... Rc8 {[%clk 0:02:59.3]} 8. O-O-O
{[%clk 0:02:56.7]} 8... Nxd4 {[%clk 0:02:59.4]} 9. Qxd4 {[%clk 0:02:57.6]} 9...
Qa5 {[%clk 0:02:59.8]} 10. Bxf6 {[%clk 0:02:56.3]} 10... gxf6 {[%clk 0:02:59.5]}
11. f4 {[%clk 0:02:56.3]} 11... Qc5 {[%clk 0:02:54.4]} 12. Qd3 {[%clk
0:02:54.8]} 12... h5 {[%clk 0:02:46.2]} 13. Kb1 {[%clk 0:02:52.4]} 13... Bh6
{[%clk 0:02:39.2]} 14. g3 {[%clk 0:02:47.8]} 14... f5 {[%clk 0:02:32.9]} 15. e5
{[%clk 0:02:45.5]} 15... Bc6 {[%clk 0:02:31.8]} 16. Bh3 {[%clk 0:02:40.5]} 16...
Bxh1 {[%clk 0:02:18.5]} 17. Rxh1 {[%clk 0:02:38.8]} 17... dxe5 {[%clk
0:02:14.7]} 18. Rd1 {[%clk 0:02:15.1]} 18... O-O {[%clk 0:01:54.9]} 19. Qf3
{[%clk 0:02:14.2]} 19... exf4 {[%clk 0:01:40.8]} 20. Qxh5 {[%clk 0:02:12.4]}
20... Bg7 {[%clk 0:01:38.2]} 21. Bxf5 {[%clk 0:02:10.7]} 21... Rfe8 {[%clk
0:01:32.4]} 22. Qh7+ {[%clk 0:01:14.1]} 22... Kf8 {[%clk 0:01:32.4]} 23. Bxc8
{[%clk 0:01:14.6]} 23... Rxc8 {[%clk 0:01:32.8]} 24. gxf4 {[%clk 0:01:13.8]}
24... Bxc3 {[%clk 0:01:26.2]} 25. bxc3 {[%clk 0:01:10.3]} 25... Qxc3 {[%clk
0:01:24.5]} 26. Rd5 {[%clk 0:00:10.9]} 26... Qe1+ {[%clk 0:01:13.5]} 27. Kb2
{[%clk 0:00:11.2]} 27... Qb4+ {[%clk 0:01:13.2]} 28. Ka1 {[%clk 0:00:11.1]}
28... Qc3+ {[%clk 0:01:06.3]} 29. Kb1 {[%clk 0:00:11.1]} 29... Qb4+ {[%clk
0:01:05.6]} 30. Ka1 {[%clk 0:00:11.1]} 30... Qc3+ {[%clk 0:00:49.5]} 31. Kb1
{[%clk 0:00:11.2]} 1/2-1/2

[Event "Early-Titled-Tuesday-Blitz-May-14-2024"]
[Site "Chess.com"]
[Date "2024.05.14"]
[Round "1"]
[White "Smoking_Crow"]
[Black "teresin05"]
[Result "1-0"]
[WhiteElo "2603"]
[BlackElo "2250"]
[TimeControl "180+1"]
[EndTime "8:06:29 PDT"]
[Termination "Smoking_Crow won on time"]

1. c4 {[%clk 0:02:55.7]} 1... c5 {[%clk 0:02:57.4]} 2. Nc3 {[%clk 0:02:53]} 2...
Nc6 {[%clk 0:02:57.6]} 3. Nf3 {[%clk 0:02:52.3]} 3... d6 {[%clk 0:02:54.2]} 4.
e4 {[%clk 0:02:50.9]} 4... e5 {[%clk 0:02:40.8]} 5. d3 {[%clk 0:02:48.9]} 5...
Be7 {[%clk 0:02:39.6]} 6. Be2 {[%clk 0:02:46.1]} 6... f5 {[%clk 0:02:38.2]} 7.
exf5 {[%clk 0:02:44.3]} 7... Bxf5 {[%clk 0:02:35.6]} 8. Nd2 {[%clk 0:02:43]}
8... Nf6 {[%clk 0:02:34]} 9. Nde4 {[%clk 0:02:42.7]} 9... Nxe4 {[%clk
0:02:20.9]} 10. dxe4 {[%clk 0:02:43.6]} 10... Be6 {[%clk 0:02:21.3]} 11. O-O
{[%clk 0:02:35.5]} 11... O-O {[%clk 0:02:20.7]} 12. b3 {[%clk 0:02:34.1]} 12...
Nd4 {[%clk 0:02:19.7]} 13. Bg4 {[%clk 0:02:30]} 13... Bf7 {[%clk 0:02:07.5]} 14.
Be3 {[%clk 0:02:25.1]} 14... Bg5 {[%clk 0:02:03]} 15. Qd2 {[%clk 0:02:23.2]}
15... Bxe3 {[%clk 0:02:00.1]} 16. fxe3 {[%clk 0:02:24.1]} 16... Nc6 {[%clk
0:01:56]} 17. Rad1 {[%clk 0:02:19.4]} 17... Qg5 {[%clk 0:01:51.4]} 18. Bf3
{[%clk 0:02:19.1]} 18... Rad8 {[%clk 0:01:50.5]} 19. Qe2 {[%clk 0:02:16.8]}
19... a6 {[%clk 0:01:45]} 20. Rd2 {[%clk 0:02:16.8]} 20... Bg6 {[%clk
0:01:31.7]} 21. Rfd1 {[%clk 0:02:15.8]} 21... Rf6 {[%clk 0:01:32.3]} 22. Nd5
{[%clk 0:02:15.3]} 22... Rf7 {[%clk 0:01:29.2]} 23. Nb6 {[%clk 0:02:10.7]} 23...
Rf6 {[%clk 0:01:27.7]} 24. Na4 {[%clk 0:02:09.8]} 24... Rdf8 {[%clk 0:01:26]}
25. Kh1 {[%clk 0:01:54.5]} 25... Qh4 {[%clk 0:00:45.3]} 26. Rxd6 {[%clk
0:01:46.3]} 26... Rxd6 {[%clk 0:00:34.5]} 27. Rxd6 {[%clk 0:01:45.5]} 27... Bxe4
{[%clk 0:00:34.9]} 28. Bxe4 {[%clk 0:01:35]} 28... Qxe4 {[%clk 0:00:35.8]} 29.
Nxc5 {[%clk 0:01:34.8]} 29... Qf5 {[%clk 0:00:26.4]} 30. Rd1 {[%clk 0:01:33.7]}
30... e4 {[%clk 0:00:24.5]} 31. Nxb7 {[%clk 0:01:32.8]} 31... Ne5 {[%clk
0:00:23.9]} 32. Nd6 {[%clk 0:01:29.8]} 32... Qg6 {[%clk 0:00:23.6]} 33. c5
{[%clk 0:01:29]} 33... Nd3 {[%clk 0:00:23.5]} 34. Rf1 {[%clk 0:01:20.9]} 34...
Rxf1+ {[%clk 0:00:12.4]} 35. Qxf1 {[%clk 0:01:21.8]} 35... Nxc5 {[%clk 0:00:12]}
36. Qc4+ {[%clk 0:01:21.6]} 36... Ne6 {[%clk 0:00:07]} 37. Qc8+ {[%clk
0:01:21.1]} 37... Nf8 {[%clk 0:00:06.6]} 38. Qc4+ {[%clk 0:01:19.2]} 38... Kh8
{[%clk 0:00:03.1]} 39. Nf7+ {[%clk 0:01:18.2]} 39... Kg8 {[%clk 0:00:02.7]} 40.
Nh6+ {[%clk 0:01:18.5]} 1-0